[Event "GER-chT Youth Countries 2020"]
[Site "Berlin"]
[Date "2020.10.03"]
[Round "6"]
[White "Moldovan, Tatiana"]
[Black "Avetyan, Manan"]
[Result "1-0"]
[ECO "C73"]
[WhiteElo "1480"]
[BlackElo "1356"]
[Annotator "NA"]
[PlyCount "127"]
[EventDate "2020.09.30"]
[EventType "team-tourn"]
[EventRounds "7"]
[EventCountry "GER"]
[SourceTitle "playchess.com"]
[Source "ChessBase"]
[SourceQuality "1"]
[TimeControl "30/5400+30:0"]

1. e4 {[%emt 0:04:48]} e5 {[%emt 0:00:00]} 2. Nf3 {[%emt 0:01:41]} Nc6 {[%emt 0:00:00]} 3. Bb5 {[%emt 0:00:25]} a6 {[%emt 0:00:02]} 4. Ba4 {[%emt 0:00:19]} d6 {[%emt 0:00:36]} 5. Bxc6+ {[%emt 0:00:49]} bxc6 {[%emt 0:00:10]} 6. d4 {[%emt 0:02:03]} exd4 {[%emt 0:00:14]} 7. Nxd4 {[%emt 0:00:49]} c5 {[%emt 0:00:28]} 8. Nf3 {[%emt 0:01:07]} Nf6 {[%emt 0:01:45]} 9. e5 {[%emt 0:00:52]} dxe5 {[%emt 0:05:10]} 10. Qxd8+ {[%emt 0:03:48]} Kxd8 {[%emt 0:00:04]} 11. Nxe5 {[%emt 0:00:05]} Ke8 {[%emt 0:10:03]} 12. O-O {[%emt 0:04:08]} Bd6 {[%emt 0:04:57]} 13. Re1 {[%emt 0:00:24]} Kf8 {[%emt 0:01:33]} 14. Nc4 {[%emt 0:03:25]} Bf5 {[%emt 0:08:31]} 15. c3 {[%emt 0:10:00]} Re8 {[%emt 0:10:22]} 16. Rxe8+ {[%emt 0:02:42]} Kxe8 {[%emt 0:01:54]} 17. Be3 {[%emt 0:02:44]} h6 {[%emt 0:17:50]} 18. Nbd2 {[%emt 0:03:04]} g5 {[%emt 0:07:03]} 19. Re1 {[%emt 0:02:02]} Kd7 {[%emt 0:01:21]} 20. Nb3 {[%emt 0:01:53]} Re8 {[%emt 0:07:22]} 21. Rd1 {[%emt 0:00:46]} Be6 {[%emt 0:18:08]} 22. Nxd6 {[%emt 0:02:01]} cxd6 {[%emt 0:00:11]} 23. Bxc5 {[%emt 0:00:05]} Ne4 {[%emt 0:01:23]} 24. Be3 {[%emt 0:00:22]} Rb8 {[%emt 0:00:37]} 25. f3 {[%emt 0:01:57]} Nf6 {[%emt 0:00:33]} 26. Nc5+ {[%emt 0:00:15]} Ke7 {[%emt 0:00:26]} 27. Nxe6 {[%emt 0:00:34]} fxe6 {[%emt 0:00:02]} 28. b3 {[%emt 0:00:26]} Nd5 {[%emt 0:00:55]} 29. Bd4 {[%emt 0:00:45]} Rc8 {[%emt 0:00:55]} 30. c4 {[%emt 0:00:14]} Nb4 {[%emt 0:00:12]} 31. Rd2 {[%emt 1:30:32]} e5 {[%emt 1:31:17]} 32. Bc3 {[%emt 0:00:01]} Nc6 {[%emt 0:00:19]} 33. Kf2 {[%emt 0:01:15]} Ke6 {[%emt 0:00:33]} 34. Ke3 {[%emt 0:00:30]} Ne7 {[%emt 0:00:32]} 35. g4 {[%emt 0:00:37]} d5 {[%emt 0:00:09]} 36. Bb4 {[%emt 0:01:02]} dxc4 {[%emt 0:00:24]} 37. Bxe7 {[%emt 0:00:17]} Kxe7 {[%emt 0:00:01]} 38. Rc2 {[%emt 0:00:16]} Kd6 {[%emt 0:01:57]} 39. Ke4 {[%emt 0:00:30]} a5 {[%emt 0:00:28]} 40. a4 {[%emt 0:00:27]} Ke6 41. bxc4 {[%emt 0:00:51]} Rc5 {[%emt 0:00:38]} 42. h3 {[%emt 0:01:03]} Rc8 {[%emt 0:00:22]} 43. c5 {[%emt 0:00:14]} Rc6 {[%emt 0:00:03]} 44. Rc4 {[%emt 0:00:43]} Rc8 {[%emt 0:00:08]} 45. c6 {[%emt 0:00:10]} Rc7 {[%emt 0:00:35]} 46. Rc5 {[%emt 0:00:13]} Kd6 {[%emt 0:00:38]} 47. Rxa5 {[%emt 0:00:23]} Rxc6 {[%emt 0:00:32]} 48. Rd5+ {[%emt 0:00:05]} Kc7 {[%emt 0:00:34]} 49. Kxe5 {[%emt 0:00:29]} Rc3 {[%emt 0:00:48]} 50. Ke4 {[%emt 0:00:36]} Kc6 {[%emt 0:00:51]} 51. Rd4 {[%emt 0:00:45]} Rc1 {[%emt 0:00:18]} 52. f4 {[%emt 0:00:49]} Re1+ {[%emt 0:00:38]} 53. Kf5 {[%emt 0:00:46]} Rf1 {[%emt 0:00:00]} 54. Ke5 {[%emt 0:00:00]} Rf3 {[%emt 0:00:00]} 55. fxg5 {[%emt 0:00:00]} hxg5 {[%emt 0:00:00]} 56. Ke4 {[%emt 0:00:00]} Rxh3 {[%emt 0:00:00]} 57. Kf5 {[%emt 0:00:00]} Kc5 {[%emt 0:00:00]} 58. Re4 {[%emt 0:00:00]} Kd5 {[%emt 0:00:51]} 59. Re8 {[%emt 0:00:00]} Ra3 {[%emt 0:01:18]} 60. Ra8 {[%emt 0:00:00]} Kd6 {[%emt 0:01:35]} 61. Kxg5 {[%emt 1:04:24]} Ke6 62. Kg6 Ke5 {[%emt 1:32:10]} 63. g5 {[%emt 0:00:19]} Kf4 {[%emt 0:00:05]} 64. Kf6 {[%emt 0:00:37]} 1-0

[Event "GER-chT Youth Countries 2020"]
[Site "Berlin"]
[Date "2020.10.03"]
[Round "6"]
[White "Mueller, Sophie Charlotte"]
[Black "Kadach, Maria"]
[Result "1/2-1/2"]
[ECO "B14"]
[WhiteElo "1459"]
[BlackElo "1539"]
[Annotator "NA"]
[PlyCount "77"]
[EventDate "2020.09.30"]
[EventType "team-tourn"]
[EventRounds "7"]
[EventCountry "GER"]
[SourceTitle "playchess.com"]
[Source "ChessBase"]
[SourceQuality "1"]
[TimeControl "30/5400+30:0"]

1. e4 {[%emt 0:00:00]} c6 {[%emt 0:00:00]} 2. d4 {[%emt 0:00:00]} d5 {[%emt 0:00:00]} 3. exd5 {[%emt 0:00:00]} cxd5 {[%emt 0:00:00]} 4. c4 {[%emt 0:00:00]} Nf6 {[%emt 0:00:00]} 5. Nc3 {[%emt 0:01:09]} g6 {[%emt 0:00:33]} 6. Bg5 {[%emt 0:01:01]} Bg7 {[%emt 0:03:34]} 7. Bxf6 {[%emt 0:05:46]} Bxf6 {[%emt 0:00:09]} 8. cxd5 {[%emt 0:01:07]} O-O {[%emt 0:00:36]} 9. Bc4 {[%emt 0:01:39]} Qb6 {[%emt 0:08:21]} 10. Nge2 {[%emt 0:07:52]} Qxb2 {[%emt 0:18:08]} 11. Rb1 {[%emt 0:07:45]} Qa3 {[%emt 0:00:10]} 12. O-O {[%emt 0:01:16]} Qa5 {[%emt 0:04:17]} 13. Ne4 {[%emt 0:08:31]} Nd7 {[%emt 0:11:05]} 14. d6 {[%emt 0:14:45]} exd6 {[%emt 0:02:04]} 15. Nxd6 {[%emt 0:01:27]} Qc7 {[%emt 0:03:31]} 16. Bxf7+ {[%emt 0:09:17]} Rxf7 {[%emt 0:00:13]} 17. Nxf7 {[%emt 0:00:04]} Kxf7 {[%emt 0:00:04]} 18. Qb3+ {[%emt 0:00:52]} Kg7 {[%emt 0:01:27]} 19. Nc3 {[%emt 0:13:51]} Bxd4 {[%emt 0:09:31]} 20. Nb5 {[%emt 0:02:14]} Qb6 {[%emt 0:10:36]} 21. Qd5 {[%emt 0:03:30]} Bc5 {[%emt 0:02:44]} 22. Nd4 {[%emt 0:01:09]} Qd6 {[%emt 0:03:18]} 23. Qxd6 {[%emt 0:04:10]} Bxd6 {[%emt 0:00:04]} 24. Ne6+ {[%emt 0:00:08]} Kf6 {[%emt 0:02:40]} 25. Rfe1 {[%emt 0:03:08]} Nc5 {[%emt 0:04:19]} 26. Nxc5 {[%emt 0:01:10]} Bxc5 {[%emt 0:00:02]} 27. Re8 {[%emt 0:00:30]} Bf5 {[%emt 0:03:00]} 28. Rbe1 {[%emt 0:00:30]} Rxe8 {[%emt 0:00:24]} 29. Rxe8 {[%emt 0:00:12]} Be6 {[%emt 0:01:04]} 30. Rh8 {[%emt 0:01:46]} Kg7 {[%emt 0:01:06]} 31. Rb8 {[%emt 1:30:21]} Bd5 {[%emt 1:30:57]} 32. Rd8 {[%emt 0:01:59]} Bxa2 {[%emt 0:03:03]} 33. Rd7+ {[%emt 0:00:13]} Kg8 {[%emt 0:00:18]} 34. Rxb7 {[%emt 0:00:23]} a5 {[%emt 0:00:30]} 35. Rb8+ {[%emt 0:02:45]} Kg7 {[%emt 0:00:23]} 36. Ra8 {[%emt 0:01:20]} Bb4 {[%emt 0:00:13]} 37. Ra7+ {[%emt 0:00:19]} Kg8 {[%emt 0:00:28]} 38. Ra8+ {[%emt 0:00:28]} Kg7 {[%emt 0:01:18]} 39. Ra7+ {[%emt 0:00:26]} 1/2-1/2

[Event "GER-chT Youth Countries 2020"]
[Site "Berlin"]
[Date "2020.10.03"]
[Round "6"]
[White "Margaryan, Susanna"]
[Black "Marrufo, Emilia"]
[Result "1-0"]
[ECO "B01"]
[WhiteElo "1450"]
[BlackElo "796"]
[Annotator "NA"]
[PlyCount "103"]
[EventDate "2020.09.30"]
[EventType "team-tourn"]
[EventRounds "7"]
[EventCountry "GER"]
[SourceTitle "playchess.com"]
[Source "ChessBase"]
[SourceQuality "1"]
[TimeControl "30/5400+30:0"]

1. e4 {[%emt 0:00:00]} d5 {[%emt 0:00:04]} 2. exd5 {[%emt 0:00:00]} Qxd5 {[%emt 0:00:09]} 3. Nc3 {[%emt 0:00:06]} Qd8 {[%emt 0:00:23]} 4. Bc4 {[%emt 0:00:30]} Nf6 {[%emt 0:00:25]} 5. d4 {[%emt 0:00:35]} Bg4 {[%emt 0:00:20]} 6. f3 {[%emt 0:01:36]} Bf5 {[%emt 0:00:41]} 7. Nge2 {[%emt 0:00:22]} e6 {[%emt 0:00:36]} 8. O-O {[%emt 0:02:10]} Bd6 {[%emt 0:00:17]} 9. Bg5 {[%emt 0:01:03]} Be7 {[%emt 0:00:26]} 10. Ng3 {[%emt 0:02:07]} O-O {[%emt 0:00:55]} 11. Nxf5 {[%emt 0:00:37]} exf5 {[%emt 0:00:50]} 12. Qd3 {[%emt 0:03:48]} Nh5 {[%emt 0:01:00]} 13. Bxe7 {[%emt 0:01:10]} Qxe7 {[%emt 0:00:39]} 14. Nd5 {[%emt 0:00:51]} Qd7 {[%emt 0:01:54]} 15. Rfe1 {[%emt 0:01:24]} g6 {[%emt 0:02:33]} 16. Re7 {[%emt 0:03:13]} Qd6 {[%emt 0:01:09]} 17. Rxc7 {[%emt 0:02:47]} Nf4 {[%emt 0:01:13]} 18. Nxf4 {[%emt 0:15:43]} Qxc7 {[%emt 0:00:21]} 19. Nd5 {[%emt 0:00:54]} Qd6 {[%emt 0:01:12]} 20. Re1 {[%emt 0:01:56]} Nc6 {[%emt 0:01:12]} 21. a3 {[%emt 0:00:46]} Rae8 {[%emt 0:00:30]} 22. Rd1 {[%emt 0:01:01]} Re6 {[%emt 0:01:10]} 23. Nc3 {[%emt 0:04:14]} Re7 {[%emt 0:01:03]} 24. Nb5 {[%emt 0:02:40]} Qf4 {[%emt 0:00:52]} 25. Nc3 {[%emt 0:03:32]} Rfe8 {[%emt 0:00:50]} 26. Nd5 {[%emt 0:00:41]} Re1+ {[%emt 0:00:29]} 27. Rxe1 {[%emt 0:00:37]} Rxe1+ {[%emt 0:00:11]} 28. Kf2 {[%emt 0:00:29]} Qh4+ {[%emt 0:01:14]} 29. g3 {[%emt 0:00:16]} Qg5 {[%emt 0:02:42]} 30. Kxe1 {[%emt 0:00:10]} Qc1+ {[%emt 0:00:20]} 31. Ke2 {[%emt 1:31:20]} Qh1 {[%emt 1:30:34]} 32. f4 {[%emt 0:10:12]} Qxh2+ {[%emt 0:01:15]} 33. Kd1 {[%emt 0:00:59]} Qg1+ {[%emt 0:03:17]} 34. Kd2 {[%emt 0:00:08]} Nxd4 {[%emt 0:00:52]} 35. Kc3 {[%emt 0:01:53]} Ne6 {[%emt 0:01:12]} 36. Qe3 {[%emt 0:01:44]} Qg2 {[%emt 0:01:10]} 37. Ne7+ {[%emt 0:01:11]} Kg7 {[%emt 0:00:38]} 38. Bd5 {[%emt 0:00:53]} Qh3 {[%emt 0:01:01]} 39. Bxb7 {[%emt 0:01:14]} Nc7 {[%emt 0:00:25]} 40. Qe5+ {[%emt 0:01:26]} Kh6 {[%emt 0:00:26]} 41. Ng8+ {[%emt 0:00:27]} Kh5 {[%emt 0:00:16]} 42. Bf3+ Qg4 {[%emt 0:00:34]} 43. Bxg4+ {[%emt 0:00:15]} Kxg4 {[%emt 0:00:07]} 44. Qxc7 {[%emt 0:00:09]} Kxg3 {[%emt 0:00:10]} 45. Kd2 {[%emt 0:00:42]} h5 46. Qxf7 h4 47. Qxg6+ Kxf4 {[%emt 0:02:55]} 48. Qh5 {[%emt 0:01:17]} Kg3 {[%emt 0:00:15]} 49. Ke2 {[%emt 0:00:33]} h3 {[%emt 0:00:18]} 50. Qg5+ {[%emt 0:01:30]} Kh2 {[%emt 0:00:14]} 51. Kf2 {[%emt 0:00:10]} a6 {[%emt 0:00:24]} 52. Qg1# {[%emt 0:00:07]} 1-0

[Event "GER-chT Youth Countries 2020"]
[Site "Berlin"]
[Date "2020.10.03"]
[Round "6"]
[White "Huppert, Anna"]
[Black "Kempe, Caius Emilian"]
[Result "0-1"]
[ECO "B21"]
[WhiteElo "1440"]
[BlackElo "1910"]
[Annotator "ChessBase"]
[PlyCount "83"]
[EventDate "2020.09.30"]
[EventType "team-tourn"]
[EventRounds "7"]
[EventCountry "GER"]
[SourceTitle "playchess.com"]
[Source "ChessBase"]
[SourceQuality "1"]
[TimeControl "30/5400+30:0"]

1. e4 {[%emt 0:00:00]} c5 {[%emt 0:00:00]} 2. d4 {[%emt 0:00:00]} cxd4 {[%emt 0:00:00]} 3. c3 {[%emt 0:00:00]} dxc3 {[%emt 0:00:00]} 4. Nxc3 {[%emt 0:00:00]} Nc6 {[%emt 0:00:00]} 5. Nf3 {[%emt 0:00:36]} e6 {[%emt 0:00:09]} 6. Bc4 {[%emt 0:00:55]} Qc7 {[%emt 0:00:10]} 7. Qe2 {[%emt 0:02:54]} Nf6 {[%emt 0:03:00]} 8. Bg5 {[%emt 0:08:04]} Ng4 {[%emt 0:02:01]} 9. Bh4 {[%emt 0:13:21]} Bb4 {[%emt 0:03:38]} 10. Rc1 {[%emt 0:05:16]} O-O {[%emt 0:01:59]} 11. Bg3 {[%emt 0:04:18]} d6 {[%emt 0:01:23]} 12. O-O {[%emt 0:02:30]} a6 {[%emt 0:03:32]} 13. Bb3 {[%emt 0:06:57]} Nf6 {[%emt 0:32:17]} 14. Rfd1 {[%emt 0:08:09]} Rd8 {[%emt 0:03:22]} 15. a3 {[%emt 0:21:34]} Bxc3 {[%emt 0:02:28]} 16. Rxc3 {[%emt 0:04:41]} e5 {[%emt 0:02:23]} 17. Ng5 {[%emt 0:08:16]} Rf8 {[%emt 0:05:01]} 18. Qd3 {[%emt 0:04:01]} Ne8 {[%emt 0:02:02]} 19. f4 {[%emt 0:02:28]} Bg4 {[%emt 0:01:42]} 20. Rf1 {[%emt 0:01:47]} Nf6 {[%emt 0:08:21]} 21. fxe5 {[%emt 0:02:01]} dxe5 {[%emt 0:00:22]} 22. Qc4 {[%emt 0:02:12]} Qd7 {[%emt 0:02:33]} 23. Qc5 {[%emt 0:00:46]} Rae8 {[%emt 0:02:37]} 24. Rcc1 {[%emt 0:00:42]} h6 {[%emt 0:00:50]} 25. Nf3 {[%emt 0:00:30]} Nxe4 {[%emt 0:01:13]} 26. Qe3 {[%emt 0:00:21]} Nxg3 {[%emt 0:00:23]} 27. hxg3 {[%emt 0:00:02]} Be6 {[%emt 0:00:59]} 28. Bc2 {[%emt 0:00:34]} Bf5 {[%emt 0:00:46]} 29. Bb3 {[%emt 0:00:28]} Qd3 {[%emt 0:00:24]} 30. Qxd3 {[%emt 0:00:17]} Bxd3 {[%emt 0:00:02]} 31. Rfe1 {[%emt 1:30:10]} e4 {[%emt 1:30:15]} 32. Nd2 {[%emt 0:00:34]} Nd4 {[%emt 0:00:34]} 33. Bd5 {[%emt 0:01:12]} Ne2+ {[%emt 0:00:21]} 34. Rxe2 {[%emt 0:00:20]} Bxe2 {[%emt 0:00:01]} 35. Bxe4 {[%emt 0:00:16]} Re7 {[%emt 0:00:25]} 36. Bf3 {[%emt 0:00:21]} Bxf3 {[%emt 0:00:26]} 37. gxf3 {[%emt 0:00:57]} Re2 {[%emt 0:00:17]} 38. Ne4 {[%emt 0:00:53]} Rxb2 {[%emt 0:00:14]} 39. a4 {[%emt 0:00:23]} b5 {[%emt 0:00:30]} 40. axb5 {[%emt 0:00:25]} axb5 {[%emt 0:00:19]} 41. Kf1 {[%emt 0:00:34]} b4 {[%emt 0:00:11]} 42. Ke1 {[%emt 0:00:31]} 0-1

[Event "GER-chT Youth Countries 2020"]
[Site "Berlin"]
[Date "2020.10.03"]
[Round "6"]
[White "Haug, Mara"]
[Black "Eichhorn, Mathilda"]
[Result "1-0"]
[ECO "C00"]
[WhiteElo "1366"]
[BlackElo "1532"]
[Annotator "NA"]
[PlyCount "67"]
[EventDate "2020.09.30"]
[EventType "team-tourn"]
[EventRounds "7"]
[EventCountry "GER"]
[SourceTitle "playchess.com"]
[Source "ChessBase"]
[SourceQuality "1"]
[TimeControl "30/5400+30:0"]

1. e4 {[%emt 0:00:00]} e6 {[%emt 0:00:00]} 2. Nf3 {[%emt 0:00:01]} d5 {[%emt 0:00:00]} 3. e5 {[%emt 0:00:05]} c5 {[%emt 0:00:00]} 4. b4 {[%emt 0:00:07]} Nc6 {[%emt 0:00:30]} 5. bxc5 {[%emt 0:00:52]} Bxc5 {[%emt 0:00:19]} 6. d4 {[%emt 0:00:11]} Bb6 {[%emt 0:00:24]} 7. c3 {[%emt 0:02:08]} f6 {[%emt 0:01:03]} 8. Bd3 {[%emt 0:05:30]} Bd7 {[%emt 0:01:38]} 9. Na3 {[%emt 0:03:36]} fxe5 {[%emt 0:01:46]} 10. Nxe5 Nf6 11. Bg5 {[%emt 0:06:53]} Ke7 {[%emt 0:33:21]} 12. Qh5 {[%emt 0:04:17]} Be8 {[%emt 0:02:13]} 13. Qg4 {[%emt 0:02:38]} Kf8 {[%emt 0:00:52]} 14. Qxe6 {[%emt 0:09:12]} Qe7 {[%emt 0:02:19]} 15. Qxe7+ {[%emt 0:00:45]} Nxe7 {[%emt 0:01:08]} 16. O-O {[%emt 0:05:07]} h6 {[%emt 0:03:37]} 17. Bd2 {[%emt 0:03:38]} a6 {[%emt 0:03:41]} 18. Rab1 {[%emt 0:02:10]} Bb5 {[%emt 0:18:24]} 19. Nxb5 {[%emt 0:04:26]} axb5 {[%emt 0:00:43]} 20. Rxb5 {[%emt 0:01:02]} Ra6 {[%emt 0:05:36]} 21. Rfb1 {[%emt 0:02:38]} Bc7 {[%emt 0:03:03]} 22. Rxb7 {[%emt 0:02:45]} Rxa2 {[%emt 0:00:44]} 23. Rxc7 {[%emt 0:01:20]} Rxd2 {[%emt 0:00:25]} 24. Bf1 {[%emt 0:12:13]} Rg8 {[%emt 0:01:43]} 25. Ra7 {[%emt 0:01:50]} g5 {[%emt 0:00:48]} 26. Rb8+ {[%emt 0:01:02]} Ne8 {[%emt 0:00:30]} 27. Raa8 {[%emt 0:00:16]} Kg7 {[%emt 0:01:06]} 28. Rxe8 {[%emt 0:00:40]} Rxe8 {[%emt 0:00:13]} 29. Rxe8 {[%emt 0:00:05]} Nf5 {[%emt 0:00:46]} 30. g3 {[%emt 0:02:12]} Rc2 {[%emt 0:00:27]} 31. Bd3 {[%emt 1:32:10]} Rc1+ {[%emt 1:30:08]} 32. Kg2 {[%emt 0:00:04]} Nd6 {[%emt 0:01:26]} 33. Rd8 {[%emt 0:00:38]} Nb5 {[%emt 0:01:25]} 34. Bxb5 {[%emt 0:00:10]} 1-0

[Event "GER-chT Youth Countries 2020"]
[Site "Berlin"]
[Date "2020.10.03"]
[Round "6"]
[White "Khanbekyan, Nare"]
[Black "Bako, Evelin"]
[Result "1-0"]
[ECO "C42"]
[WhiteElo "1334"]
[BlackElo "1192"]
[Annotator "NA"]
[PlyCount "97"]
[EventDate "2020.09.30"]
[EventType "team-tourn"]
[EventRounds "7"]
[EventCountry "GER"]
[SourceTitle "playchess.com"]
[Source "ChessBase"]
[SourceQuality "1"]
[TimeControl "30/5400+30:0"]

1. e4 {[%emt 0:00:00]} e5 {[%emt 0:00:00]} 2. Nf3 {[%emt 0:00:00]} Nf6 {[%emt 0:00:00]} 3. Nxe5 {[%emt 0:00:00]} d6 {[%emt 0:00:10]} 4. Nf3 {[%emt 0:00:00]} Nxe4 {[%emt 0:00:25]} 5. Nc3 {[%emt 0:00:01]} Nxc3 {[%emt 0:00:28]} 6. dxc3 {[%emt 0:00:11]} Nc6 {[%emt 0:00:42]} 7. Bf4 {[%emt 0:00:18]} Be7 {[%emt 0:01:22]} 8. Qd2 {[%emt 0:00:27]} Be6 {[%emt 0:00:55]} 9. a3 {[%emt 0:02:34]} Qd7 {[%emt 0:02:05]} 10. O-O-O {[%emt 0:00:16]} Bf6 {[%emt 0:02:05]} 11. Bd3 {[%emt 0:01:01]} O-O-O {[%emt 0:01:38]} 12. Rhe1 {[%emt 0:01:57]} h6 {[%emt 0:07:04]} 13. h3 {[%emt 0:04:44]} Rhe8 {[%emt 0:07:32]} 14. g4 {[%emt 0:01:33]} Kb8 {[%emt 0:09:05]} 15. Bb5 {[%emt 0:06:42]} a6 {[%emt 0:02:55]} 16. Ba4 {[%emt 0:00:28]} b5 {[%emt 0:03:25]} 17. Bb3 Bxb3 18. cxb3 {[%emt 0:00:36]} Na5 {[%emt 0:04:23]} 19. Qd5 {[%emt 0:04:25]} g5 {[%emt 0:08:11]} 20. Bg3 {[%emt 0:03:46]} Ka7 {[%emt 0:10:56]} 21. b4 {[%emt 0:05:30]} Nc4 {[%emt 0:02:25]} 22. Rxe8 {[%emt 0:04:54]} Rxe8 {[%emt 0:01:00]} 23. Qc5+ {[%emt 0:04:23]} Nb6 {[%emt 0:04:04]} 24. Bxd6 {[%emt 0:02:37]} Rc8 {[%emt 0:12:46]} 25. Be5 {[%emt 0:06:16]} Qe6 {[%emt 0:01:41]} 26. Bxc7 {[%emt 0:05:06]} Kb7 {[%emt 0:01:50]} 27. Qxb6+ {[%emt 0:04:08]} Qxb6 {[%emt 0:00:21]} 28. Bxb6 {[%emt 0:00:13]} Kxb6 {[%emt 0:00:13]} 29. Rd6+ {[%emt 0:00:55]} Rc6 {[%emt 0:00:20]} 30. Rd7 {[%emt 0:01:56]} Rc7 {[%emt 0:01:32]} 31. Rxc7 {[%emt 1:30:29]} Kxc7 {[%emt 1:30:10]} 32. Nd4 {[%emt 0:01:02]} Bxd4 {[%emt 0:01:18]} 33. cxd4 {[%emt 0:00:06]} Kd6 {[%emt 0:00:28]} 34. Kd2 {[%emt 0:00:14]} f6 {[%emt 0:00:13]} 35. Ke3 {[%emt 0:00:16]} Kd5 {[%emt 0:00:20]} 36. f4 {[%emt 0:01:19]} Kd6 {[%emt 0:00:26]} 37. Ke4 {[%emt 0:00:33]} Ke6 {[%emt 0:00:24]} 38. d5+ {[%emt 0:00:56]} Kd6 {[%emt 0:00:11]} 39. Kf5 {[%emt 0:02:16]} Kxd5 {[%emt 0:00:24]} 40. fxg5 {[%emt 0:00:10]} fxg5 {[%emt 0:00:10]} 41. Kg6 {[%emt 0:00:08]} Ke4 {[%emt 0:00:12]} 42. Kxh6 {[%emt 0:00:14]} Kf4 {[%emt 0:00:32]} 43. Kh5 {[%emt 0:00:25]} Kg3 {[%emt 0:00:28]} 44. Kxg5 {[%emt 0:00:08]} Kxh3 {[%emt 0:00:07]} 45. Kh5 {[%emt 0:00:08]} Kg3 {[%emt 0:00:11]} 46. g5 {[%emt 0:00:04]} Kf4 {[%emt 0:00:55]} 47. g6 {[%emt 0:00:07]} Kf5 {[%emt 0:00:13]} 48. g7 {[%emt 0:00:09]} Kf6 {[%emt 0:00:04]} 49. g8=Q 1-0

[Event "GER-chT Youth Countries 2020"]
[Site "Berlin"]
[Date "2020.10.03"]
[Round "6"]
[White "Lorenz, Veronika"]
[Black "Heuberger, Sandra"]
[Result "1-0"]
[ECO "C50"]
[WhiteElo "1273"]
[BlackElo "1004"]
[Annotator "NA"]
[PlyCount "63"]
[EventDate "2020.09.30"]
[EventType "team-tourn"]
[EventRounds "7"]
[EventCountry "GER"]
[SourceTitle "playchess.com"]
[Source "ChessBase"]
[SourceQuality "1"]
[TimeControl "30/5400+30:0"]

1. e4 {[%emt 0:00:00]} e5 {[%emt 0:00:00]} 2. Nf3 {[%emt 0:00:00]} Nc6 {[%emt 0:00:00]} 3. d4 {[%emt 0:00:16]} exd4 {[%emt 0:00:18]} 4. Bc4 {[%emt 0:00:17]} Be7 {[%emt 0:04:59]} 5. O-O {[%emt 0:12:13]} d6 {[%emt 0:02:54]} 6. Nxd4 {[%emt 0:07:56]} Nf6 {[%emt 0:05:37]} 7. Re1 {[%emt 0:04:45]} O-O {[%emt 0:03:12]} 8. b3 {[%emt 0:06:58]} Nxe4 {[%emt 0:09:16]} 9. Nxc6 {[%emt 0:02:45]} bxc6 {[%emt 0:00:33]} 10. Rxe4 {[%emt 0:13:02]} d5 {[%emt 0:02:23]} 11. Rxe7 {[%emt 0:00:24]} Qxe7 {[%emt 0:01:30]} 12. Bd3 {[%emt 0:01:13]} Bd7 {[%emt 0:05:18]} 13. Bb2 {[%emt 0:03:41]} Rad8 {[%emt 0:01:36]} 14. Nd2 {[%emt 0:05:42]} Qe6 {[%emt 0:03:38]} 15. Nf3 {[%emt 0:07:51]} Qd6 {[%emt 0:01:10]} 16. Ng5 {[%emt 0:08:18]} f5 {[%emt 0:01:34]} 17. c4 {[%emt 0:03:45]} d4 {[%emt 0:02:03]} 18. c5 {[%emt 0:02:08]} Qg6 {[%emt 0:07:19]} 19. Bc4+ {[%emt 0:02:19]} Kh8 {[%emt 0:01:12]} 20. h4 {[%emt 0:00:32]} Bc8 {[%emt 0:01:28]} 21. Bxd4 {[%emt 0:01:38]} h6 {[%emt 0:03:26]} 22. Nf7+ {[%emt 0:00:23]} Rxf7 {[%emt 0:01:59]} 23. Bxf7 {[%emt 0:00:09]} Qxf7 {[%emt 0:00:35]} 24. Bxg7+ {[%emt 0:00:12]} Qxg7 {[%emt 0:00:45]} 25. Qxd8+ {[%emt 0:00:08]} Kh7 {[%emt 0:00:34]} 26. Re1 {[%emt 0:00:29]} Ba6 {[%emt 0:04:29]} 27. Re7 {[%emt 0:00:29]} Qxe7 {[%emt 0:01:56]} 28. Qxe7+ {[%emt 0:00:06]} Kg6 {[%emt 0:00:19]} 29. Qf8 {[%emt 0:01:34]} Bb5 {[%emt 0:00:24]} 30. h5+ {[%emt 0:00:07]} Kxh5 {[%emt 0:00:19]} 31. Qxf5+ {[%emt 1:30:05]} Kh4 {[%emt 1:30:18]} 32. g3# {[%emt 0:00:06]} 1-0